Workbook

Sheet WT-001
N1: Prior to preparing the next invoice ensure that the current amount and the materials stored amounts match what was approved by Whiting-Turner
A2: APPLICATION FOR PAYMENT | M2: Form WT-001
A3: SUBMIT ELECTRONICALLY TO: | AA3: Project Name: | AB3: Fannie Mae UTC PLC Replacement
C4: THE WHITING-TURNER CONTRACTING COMPANY | N4: Contractor: | AA4: Project Number: | AB4: 018117
C5: 300 East Joppa Road | N5: Remittance Address: | AA5: Subcontract No:
C6: Baltimore, Maryland 21286 | AA6: Application No:
AA7: Invoice No:
C8: Email: | N8: Phone No: | AA8: Period To:
C9: ATTN: | O9: Email: | AA9: Invoice Date:
A10: APPLICATION: | S10: CHANGE ORDER SUMMARY | Y10: Additions | AA10: Deductions | AC10: Net Change
A12: Application is made for Payment, as shown below, in connection with the Contract. | S12: Previously Approved | Y12: 0 | AA12: 0 | AC12: =Y12-AA12 -> 0
A13: Schedule of Values, WT-002, is attached.
A14: 1 | B14: ORIGINAL CONTRACT SUM | L14: $ | M14: ='WT-002'!E45 -> 0 | S14: Approved this Month | Y14: =Y16-Y12 -> 0 | AA14: =AA16-AA12 -> 0 | AC14: =Y14-AA14 -> 0
A15: 2 | B15: NET CHANGE BY CHANGE ORDERS | L15: $ | M15: =AC16 -> 0 | S15: (From WT-003)
A16: 3 | B16: CONTRACT SUM TO DATE (Line 1 +/- 2) | L16: $ | M16: =M14+M15 -> 0 | S16: Totals | Y16: =SUMIF('WT-003'!E16:E48,">0") -> 0 | AA16: =-SUMIF('WT-003'!E16:E48,"<0") -> 0 | AC16: =AC12+AC14 -> 0
A17: 4 | B17: TOTAL COMPLETED & STORED TO DATE | L17: $ | M17: ='WT-002'!J48 -> 0
C18: (Column H on WT-002) | T18: CERTIFICATION:
A19: 5 | B19: RETENTION | T19: The undersigned Contractor certifies that to the best of the Contractor's knowledge, information and belief the Work covered by this Application for Payment has been completed in accordance with the Contract Documents, that all amounts have been paid by the Contractor for Work for which previous Certificates for Payment were issued and payments received from Whiting-Turner, and that the current payment shown herein is now due.
C20: (Column P on WT-002) | L20: $ | M20: ='WT-002'!R48 -> 0
T22: CONTRACTOR:
A23: 6 | B23: TOTAL EARNED LESS RETENTION | L23: $ | M23: =M17-M20 -> 0 | X23: =IF(P3<>"",P3,"") -> 
C24: (Line 4 less Line 5 Total)
A26: 7 | B26: LESS PREVIOUS CERTIFICATES FOR PAYMENT | L26: $ | M26: ='WT-002'!F48-'WT-002'!N48 -> 0 | T26: By: | AB26: Date:
C27: (Line 6 from Previous Invoice)
U28: Printed Name and Title
A29: 8 | B29: CURRENT PAYMENT DUE | L29: $ | M29: =M23-M26 -> 0 | T29: State of:
C30: (Line 6 less line 7) | T30: Subscribed and sworn to before me this
T32: Notary Public:
T33: My Commission expires:
A34: For Whiting-Turner Use Only:
A36: PROJECT # | D36: =IF(AB4<>"",AB4,"") -> 018117 | I36: SUBCONT# | M36: =IF(AB5<>"",AB5,"") ->  | T36: EARLY PAYMENT DISCOUNT OPTION:
A37: Current - Progress Billing | I37: Retention Release | T37: Payment terms shall be in accordance with the above referenced Contract No. In the
A38: CURRENT GROSS | F38: ='WT-002'!I48 -> 0 | I38: TOTAL RETENT | N38: ='WT-002'!P48 -> 0 | T38: event that Whiting-Turner elects to provide for shorter payment terms, we agree to
A39: CURRENT RETENTION | F39: ='WT-002'!O48 -> 0 | I39: REMAINING RETENT | N39: =N38-N40 -> 0 | T39: do so for the following discount structure:
A40: CURRENT PAY | F40: =F38-F39 -> 0 | I40: RELEASE RETENT | N40: ='WT-002'!Q48 -> 0 | W40: % Discount, net | AB40: days, if paid by
A41: VENDOR | E41: APPV | G41: DATE | I41: APPV | L41: DATE | O41: VP | T41: Whiting-Turner's election to take a discount will be a unilateral decision made by Whiting-Turner alone. The decision to take a discount on one progress payment does not represent a decision to implement early payments for any other work performed by this subcontractor or supplier.
A43: 10/21/2015 -Whiting-Turner

Sheet WT-002
C2: ORIGINAL SCHEDULE OF VALUES | E2: Form WT-002
C3: Contractor: | D3: =IF('WT-001'!P3<>"",'WT-001'!P3,"") ->  | J3: =IF('WT-001'!AB3<>"",'WT-001'!AB3,"") -> Fannie Mae UTC PLC Replacement
C4: Remittance Address: | D4: =IF('WT-001'!P5<>"",'WT-001'!P5,"") ->  | I4: PROJECT: | P4: APPLICATION NO: | Q4: =IF('WT-001'!AB6<>"",'WT-001'!AB6,"") -> 
D5: =IF('WT-001'!P6<>"",'WT-001'!P6,"") ->  | I5: PROJECT NO: | J5: =IF('WT-001'!D36<>"",'WT-001'!D36,"") -> 018117 | P5: PERIOD TO: | Q5: =IF('WT-001'!AB8<>"",'WT-001'!AB8,"") -> 
D6: =IF('WT-001'!P7<>"",'WT-001'!P7,"") ->  | I6: CONTRACT NO: | J6: =IF('WT-001'!AB5<>"",'WT-001'!AB5,"") ->  | P6: INVOICE DATE: | Q6: =IF('WT-001'!AB9<>"",'WT-001'!AB9,"") -> 
C7: WT-001 Application for Payment, containing Contractor's signed Certification is attached. In tabulations below, amounts are stated to the nearest dollar.
C9: A | D9: B | E9: C | F9: D | G9: E | H9: F | I9: G | J9: H | K9: I | L9: J | M9: K | N9: L | O9: M | P9: N | Q9: O | R9: P | S9: Q
C11: Task Code | D11: Description | E11: Contract Amount | F11: Work Completed | H11: Materials Presently Stored (Not in D or E) | I11: Total Current Amount (E+F) | J11: Total Completed Amount (D+G) | L11: Balance to Finish (C+H) | M11: % Ret this Period | N11: Previous Retainage | O11: Current Amount Retained (K*G) | P11: Total Amount Retained (L+M) | Q11: Retainage Released | R11: Total retainage held to date (N-O) | S11: % Total Ret (P / H)
F12: Previous Certified Amount | G12: This Period | K12: % | P12: Held
K13: (H/C) | P13: ='WT-001'!#REF!/100 -> 
A16: + | B16: - | C16: 01 | E16: 0 | F16: 0 | G16: 0 | H16: 0 | I16: =SUM(H16,G16) -> 0 | J16: =SUM(I16,F16) -> 0 | K16: =IF(E16=0,0,J16/E16) -> 0 | L16: =SUM(E16,-J16) -> 0 | M16: 0.1 | N16: 0 | O16: =M16*I16 -> 0 | P16: =SUM(O16,N16) -> 0 | Q16: 0 | R16: =SUM(P16,-Q16) -> 0 | S16: =IF(J16=0,0,R16/J16) -> 0 | V16: =SUM(G16,F16) -> 0
A17: + | B17: - | F17: 0 | G17: 0 | H17: 0 | I17: =SUM(H17,G17) -> 0 | J17: =SUM(I17,F17) -> 0 | K17: =IF(E17=0,0,J17/E17) -> 0 | L17: =SUM(E17,-J17) -> 0 | N17: 0 | O17: =M17*I17 -> 0 | P17: =SUM(O17,N17) -> 0 | Q17: 0 | R17: =SUM(P17,-Q17) -> 0 | S17: =IF(J17=0,0,R17/J17) -> 0 | V17: 0
A18: + | B18: - | F18: 0 | G18: 0 | H18: 0 | I18: 0 | J18: 0 | K18: 0 | L18: 0 | N18: 0 | O18: 0 | P18: 0 | Q18: 0 | R18: 0 | S18: 0 | V18: 0
A19: + | B19: - | F19: 0 | G19: 0 | H19: 0 | I19: 0 | J19: 0 | K19: 0 | L19: 0 | N19: 0 | O19: 0 | P19: 0 | Q19: 0 | R19: 0 | S19: 0 | V19: 0
A20: + | B20: - | F20: 0 | G20: 0 | H20: 0 | I20: 0 | J20: 0 | K20: 0 | L20: 0 | N20: 0 | O20: 0 | P20: 0 | Q20: 0 | R20: 0 | S20: 0
A21: + | B21: - | F21: 0 | G21: 0 | H21: 0 | I21: 0 | J21: 0 | K21: 0 | L21: 0 | N21: 0 | O21: 0 | P21: 0 | Q21: 0 | R21: 0 | S21: 0 | V21: 0
A22: + | B22: - | F22: 0 | G22: 0 | H22: 0 | I22: 0 | J22: 0 | K22: 0 | L22: 0 | N22: 0 | O22: 0 | P22: 0 | Q22: 0 | R22: 0 | S22: 0 | V22: 0
A23: + | B23: - | F23: 0 | G23: 0 | H23: 0 | I23: 0 | J23: 0 | K23: 0 | L23: 0 | N23: 0 | O23: 0 | P23: 0 | Q23: 0 | R23: 0 | S23: 0
A24: + | B24: - | F24: 0 | G24: 0 | H24: 0 | I24: 0 | J24: 0 | K24: 0 | L24: 0 | N24: 0 | O24: 0 | P24: 0 | Q24: 0 | R24: 0 | S24: 0 | V24: 0
A25: + | B25: - | F25: 0 | G25: 0 | H25: 0 | I25: 0 | J25: 0 | K25: 0 | L25: 0 | N25: 0 | O25: 0 | P25: 0 | Q25: 0 | R25: 0 | S25: 0
A26: + | B26: - | F26: 0 | G26: 0 | H26: 0 | I26: 0 | J26: 0 | K26: 0 | L26: 0 | N26: 0 | O26: 0 | P26: 0 | Q26: 0 | R26: 0 | S26: 0 | V26: 0
A27: + | B27: - | F27: 0 | G27: 0 | H27: 0 | I27: 0 | J27: 0 | K27: 0 | L27: 0 | N27: 0 | O27: 0 | P27: 0 | Q27: 0 | R27: 0 | S27: 0 | V27: 0
A28: + | B28: - | F28: 0 | G28: 0 | H28: 0 | I28: 0 | J28: 0 | K28: 0 | L28: 0 | N28: 0 | O28: 0 | P28: 0 | Q28: 0 | R28: 0 | S28: 0
A29: + | B29: - | F29: 0 | G29: 0 | H29: 0 | I29: 0 | J29: 0 | K29: 0 | L29: 0 | N29: 0 | O29: 0 | P29: 0 | Q29: 0 | R29: 0 | S29: 0
A30: + | B30: - | F30: 0 | G30: 0 | H30: 0 | I30: 0 | J30: 0 | K30: 0 | L30: 0 | N30: 0 | O30: 0 | P30: 0 | Q30: 0 | R30: 0 | S30: 0
A31: + | B31: - | F31: 0 | G31: 0 | H31: 0 | I31: 0 | J31: 0 | K31: 0 | L31: 0 | N31: 0 | O31: 0 | P31: 0 | Q31: 0 | R31: 0 | S31: 0
A32: + | B32: - | F32: 0 | G32: 0 | H32: 0 | I32: 0 | J32: 0 | K32: 0 | L32: 0 | N32: 0 | O32: 0 | P32: 0 | Q32: 0 | R32: 0 | S32: 0
A33: + | B33: - | F33: 0 | G33: 0 | H33: 0 | I33: 0 | J33: 0 | K33: 0 | L33: 0 | N33: 0 | O33: 0 | P33: 0 | Q33: 0 | R33: 0 | S33: 0 | V33: 0
A34: + | B34: - | F34: 0 | G34: 0 | H34: 0 | I34: 0 | J34: 0 | K34: 0 | L34: 0 | N34: 0 | O34: 0 | P34: 0 | Q34: 0 | R34: 0 | S34: 0 | V34: 0
A35: + | B35: - | F35: 0 | G35: 0 | H35: 0 | I35: 0 | J35: 0 | K35: 0 | L35: 0 | N35: 0 | O35: 0 | P35: 0 | Q35: 0 | R35: 0 | S35: 0 | V35: 0
A36: + | B36: - | F36: 0 | G36: 0 | H36: 0 | I36: 0 | J36: 0 | K36: 0 | L36: 0 | N36: 0 | O36: 0 | P36: 0 | Q36: 0 | R36: 0 | S36: 0 | V36: 0
A37: + | B37: - | F37: 0 | G37: 0 | H37: 0 | I37: 0 | J37: 0 | K37: 0 | L37: 0 | N37: 0 | O37: 0 | P37: 0 | Q37: 0 | R37: 0 | S37: 0
A38: + | B38: - | F38: 0 | G38: 0 | H38: 0 | I38: 0 | J38: 0 | K38: 0 | L38: 0 | N38: 0 | O38: 0 | P38: 0 | Q38: 0 | R38: 0 | S38: 0 | V38: 0
A39: + | B39: - | F39: 0 | G39: 0 | H39: 0 | I39: 0 | J39: 0 | K39: 0 | L39: 0 | N39: 0 | O39: 0 | P39: 0 | Q39: 0 | R39: 0 | S39: 0 | V39: 0
A40: + | B40: - | F40: 0 | G40: 0 | H40: 0 | I40: 0 | J40: 0 | K40: 0 | L40: 0 | N40: 0 | O40: 0 | P40: 0 | Q40: 0 | R40: 0 | S40: 0 | V40: 0
A41: + | B41: - | F41: 0 | G41: 0 | H41: 0 | I41: 0 | J41: 0 | K41: 0 | L41: 0 | N41: 0 | O41: 0 | P41: 0 | Q41: 0 | R41: 0 | S41: 0
A42: + | B42: - | F42: 0 | G42: 0 | H42: 0 | I42: 0 | J42: 0 | K42: 0 | L42: 0 | N42: 0 | O42: 0 | P42: 0 | Q42: 0 | R42: 0 | S42: 0 | V42: 0
F43: 0 | G43: 0 | H43: 0 | I43: =SUM(H43,G43) -> 0 | J43: =SUM(I43,F43) -> 0 | K43: =IF(E43=0,0,J43/E43) -> 0 | L43: =SUM(E43,-J43) -> 0 | N43: 0 | O43: =M43*I43 -> 0 | P43: =SUM(O43,N43) -> 0 | Q43: 0 | R43: =SUM(P43,-Q43) -> 0 | S43: =IF(J43=0,0,R43/J43) -> 0 | V43: 0
C45: Subtotal | E45: =SUM(E16:E44) -> 0 | F45: 0 | G45: 0 | H45: 0 | I45: 0 | J45: 0 | K45: =IF(E45=0,0,J45/E45) -> 0 | L45: =SUM(L16:L44) -> 0 | N45: =SUM(N16:N44) -> 0 | O45: =SUM(O16:O44) -> 0 | P45: =SUM(P16:P44) -> 0 | Q45: =SUM(Q16:Q44) -> 0 | R45: =SUM(R16:R44) -> 0
C46: Summary of Changes (from W-T 003) | E46: ='WT-003'!E51 -> 0 | F46: ='WT-003'!F51 -> 0 | G46: ='WT-003'!G51 -> 0 | H46: ='WT-003'!H51 -> 0 | I46: ='WT-003'!I51 -> 0 | J46: ='WT-003'!J51 -> 0 | K46: =IF(E46=0,0,J46/E46) -> 0 | L46: ='WT-003'!L51 -> 0 | N46: ='WT-003'!N51 -> 0 | O46: ='WT-003'!O51 -> 0 | P46: ='WT-003'!P51 -> 0 | Q46: ='WT-003'!Q51 -> 0 | R46: ='WT-003'!R51 -> 0
C47: Totals:
E48: =SUM(E45:E46) -> 0 | F48: 0 | G48: 0 | H48: 0 | I48: 0 | J48: 0 | K48: =IF(E48=0,0,J48/E48) -> 0 | L48: =SUM(L45:L46) -> 0 | N48: =SUM(N45:N46) -> 0 | O48: =SUM(O45:O46) -> 0 | P48: =SUM(P45:P46) -> 0 | Q48: =SUM(Q45:Q46) -> 0 | R48: =SUM(R45:R46) -> 0
C50: 10/2/2015 -Whiting-Turner

Sheet WT-003
C2: CHANGE ORDER SCHEDULE OF VALUES | E2: Form WT-003
C3: Contractor: | D3: =IF('WT-001'!P3<>"",'WT-001'!P3,"") ->  | J3: =IF('WT-001'!AB3<>"",'WT-001'!AB3,"") -> Fannie Mae UTC PLC Replacement
C4: Remittance Address: | D4: =IF('WT-001'!P5<>"",'WT-001'!P5,"") ->  | I4: PROJECT: | P4: APPLICATION NO: | Q4: =IF('WT-001'!AB6<>"",'WT-001'!AB6,"") -> 
D5: =IF('WT-001'!P6<>"",'WT-001'!P6,"") ->  | I5: PROJECT NO: | J5: =IF('WT-001'!D36<>"",'WT-001'!D36,"") -> 018117 | P5: PERIOD TO: | Q5: =IF('WT-001'!AB8<>"",'WT-001'!AB8,"") -> 
D6: =IF('WT-001'!P7<>"",'WT-001'!P7,"") ->  | I6: CONTRACT NO: | J6: =IF('WT-001'!AB5<>"",'WT-001'!AB5,"") ->  | P6: INVOICE DATE: | Q6: =IF('WT-001'!AB9<>"",'WT-001'!AB9,"") -> 
C7: WT-001 Application for Payment, containing Contractor's signed Certification is attached. In tabulations below, amounts are stated to the nearest dollar.
C9: A | D9: B | E9: C | F9: D | G9: E | H9: F | I9: G | J9: H | K9: I | L9: J | M9: K | N9: L | O9: M | P9: N | Q9: O | R9: P | S9: Q
C11: Task Code | D11: Description | E11: Contract Amount | F11: Work Completed | H11: Materials Presently Stored (Not in D or E) | I11: Total Current Amount (E+F) | J11: Total Completed Amount (D+G) | L11: Balance to Finish (C+H) | M11: % Ret this Period | N11: Previous Retainage | O11: Current Amount Retained (K*G) | P11: Total Amount Retained (L+M) | Q11: Retainage Released | R11: Total retainage held to date (N-O) | S11: % Total Ret
F12: Previous Certified Amount | G12: This Period | K12: % | P12: Held
K13: (H/C) | P13: ='WT-001'!#REF!/100 -> 
A16: + | B16: - | C16: 1 | F16: 0 | H16: 0 | I16: =SUM(H16,G16) -> 0 | J16: =SUM(I16,F16) -> 0 | K16: =IF(E16=0,0,J16/E16) -> 0 | L16: =SUM(E16,-J16) -> 0 | M16: 0.1 | N16: 0 | O16: =M16*I16 -> 0 | P16: =SUM(O16,N16) -> 0 | Q16: 0 | R16: =SUM(P16,-Q16) -> 0 | S16: =IF(J16=0,0,R16/J16) -> 0 | V16: =SUM(G16,F16) -> 0
A17: + | B17: - | F17: 0 | H17: 0 | I17: =SUM(H17,G17) -> 0 | J17: =SUM(I17,F17) -> 0 | K17: =IF(E17=0,0,J17/E17) -> 0 | L17: =SUM(E17,-J17) -> 0 | M17: 0.1 | N17: 0 | O17: =M17*I17 -> 0 | P17: =SUM(O17,N17) -> 0 | Q17: 0 | R17: =SUM(P17,-Q17) -> 0 | S17: =IF(J17=0,0,R17/J17) -> 0 | V17: 0
A18: + | B18: - | F18: 0 | G18: 0 | H18: 0 | I18: =SUM(H18,G18) -> 0 | J18: =SUM(I18,F18) -> 0 | K18: =IF(E18=0,0,J18/E18) -> 0 | L18: =SUM(E18,-J18) -> 0 | N18: 0 | O18: =M18*I18 -> 0 | P18: =SUM(O18,N18) -> 0 | Q18: 0 | R18: =SUM(P18,-Q18) -> 0 | S18: =IF(J18=0,0,R18/J18) -> 0 | V18: 0
A19: + | B19: - | F19: 0 | G19: 0 | H19: 0 | I19: 0 | J19: 0 | K19: 0 | L19: 0 | N19: 0 | O19: 0 | P19: 0 | Q19: 0 | R19: 0 | S19: 0 | V19: 0
A20: + | B20: - | F20: 0 | G20: 0 | H20: 0 | I20: 0 | J20: 0 | K20: 0 | L20: 0 | N20: 0 | O20: 0 | P20: 0 | Q20: 0 | R20: 0 | S20: 0 | V20: 0
A21: + | B21: - | F21: 0 | G21: 0 | H21: 0 | I21: 0 | J21: 0 | K21: 0 | L21: 0 | N21: 0 | O21: 0 | P21: 0 | Q21: 0 | R21: 0 | S21: 0 | V21: 0
A22: + | B22: - | F22: 0 | G22: 0 | H22: 0 | I22: 0 | J22: 0 | K22: 0 | L22: 0 | N22: 0 | O22: 0 | P22: 0 | Q22: 0 | R22: 0 | S22: 0 | V22: 0
A23: + | B23: - | F23: 0 | G23: 0 | H23: 0 | I23: 0 | J23: 0 | K23: 0 | L23: 0 | N23: 0 | O23: 0 | P23: 0 | Q23: 0 | R23: 0 | S23: 0 | V23: 0
A24: + | B24: - | F24: 0 | G24: 0 | H24: 0 | I24: 0 | J24: 0 | K24: 0 | L24: 0 | N24: 0 | O24: 0 | P24: 0 | Q24: 0 | R24: 0 | S24: 0
A25: + | B25: - | F25: 0 | G25: 0 | H25: 0 | I25: 0 | J25: 0 | K25: 0 | L25: 0 | N25: 0 | O25: 0 | P25: 0 | Q25: 0 | R25: 0 | S25: 0 | V25: 0
A26: + | B26: - | F26: 0 | G26: 0 | H26: 0 | I26: 0 | J26: 0 | K26: 0 | L26: 0 | N26: 0 | O26: 0 | P26: 0 | Q26: 0 | R26: 0 | S26: 0 | V26: 0
A27: + | B27: - | F27: 0 | G27: 0 | H27: 0 | I27: 0 | J27: 0 | K27: 0 | L27: 0 | N27: 0 | O27: 0 | P27: 0 | Q27: 0 | R27: 0 | S27: 0 | V27: 0
A28: + | B28: - | F28: 0 | G28: 0 | H28: 0 | I28: 0 | J28: 0 | K28: 0 | L28: 0 | N28: 0 | O28: 0 | P28: 0 | Q28: 0 | R28: 0 | S28: 0 | V28: 0
A29: + | B29: - | F29: 0 | G29: 0 | H29: 0 | I29: 0 | J29: 0 | K29: 0 | L29: 0 | N29: 0 | O29: 0 | P29: 0 | Q29: 0 | R29: 0 | S29: 0 | V29: 0
A30: + | B30: - | F30: 0 | G30: 0 | H30: 0 | I30: 0 | J30: 0 | K30: 0 | L30: 0 | N30: 0 | O30: 0 | P30: 0 | Q30: 0 | R30: 0 | S30: 0 | V30: 0
A31: + | B31: - | F31: 0 | G31: 0 | H31: 0 | I31: 0 | J31: 0 | K31: 0 | L31: 0 | N31: 0 | O31: 0 | P31: 0 | Q31: 0 | R31: 0 | S31: 0 | V31: 0
A32: + | B32: - | F32: 0 | G32: 0 | H32: 0 | I32: 0 | J32: 0 | K32: 0 | L32: 0 | N32: 0 | O32: 0 | P32: 0 | Q32: 0 | R32: 0 | S32: 0 | V32: 0
A33: + | B33: - | F33: 0 | G33: 0 | H33: 0 | I33: 0 | J33: 0 | K33: 0 | L33: 0 | N33: 0 | O33: 0 | P33: 0 | Q33: 0 | R33: 0 | S33: 0 | V33: 0
A34: + | B34: - | F34: 0 | G34: 0 | H34: 0 | I34: 0 | J34: 0 | K34: 0 | L34: 0 | N34: 0 | O34: 0 | P34: 0 | Q34: 0 | R34: 0 | S34: 0 | V34: 0
A35: + | B35: - | F35: 0 | G35: 0 | H35: 0 | I35: 0 | J35: 0 | K35: 0 | L35: 0 | N35: 0 | O35: 0 | P35: 0 | Q35: 0 | R35: 0 | S35: 0 | V35: 0
A36: + | B36: - | F36: 0 | G36: 0 | H36: 0 | I36: 0 | J36: 0 | K36: 0 | L36: 0 | N36: 0 | O36: 0 | P36: 0 | Q36: 0 | R36: 0 | S36: 0
A37: + | B37: - | F37: 0 | G37: 0 | H37: 0 | I37: 0 | J37: 0 | K37: 0 | L37: 0 | N37: 0 | O37: 0 | P37: 0 | Q37: 0 | R37: 0 | S37: 0 | V37: 0
A38: + | B38: - | F38: 0 | G38: 0 | H38: 0 | I38: 0 | J38: 0 | K38: 0 | L38: 0 | N38: 0 | O38: 0 | P38: 0 | Q38: 0 | R38: 0 | S38: 0 | V38: 0
A39: + | B39: - | F39: 0 | G39: 0 | H39: 0 | I39: 0 | J39: 0 | K39: 0 | L39: 0 | N39: 0 | O39: 0 | P39: 0 | Q39: 0 | R39: 0 | S39: 0 | V39: 0
A40: + | B40: - | F40: 0 | G40: 0 | H40: 0 | I40: 0 | J40: 0 | K40: 0 | L40: 0 | N40: 0 | O40: 0 | P40: 0 | Q40: 0 | R40: 0 | S40: 0
A41: + | B41: - | F41: 0 | G41: 0 | H41: 0 | I41: 0 | J41: 0 | K41: 0 | L41: 0 | N41: 0 | O41: 0 | P41: 0 | Q41: 0 | R41: 0 | S41: 0
A42: + | B42: - | F42: 0 | G42: 0 | H42: 0 | I42: 0 | J42: 0 | K42: 0 | L42: 0 | N42: 0 | O42: 0 | P42: 0 | Q42: 0 | R42: 0 | S42: 0 | V42: 0
A43: + | B43: - | F43: 0 | G43: 0 | H43: 0 | I43: 0 | J43: 0 | K43: 0 | L43: 0 | N43: 0 | O43: 0 | P43: 0 | Q43: 0 | R43: 0 | S43: 0 | V43: 0
A44: + | B44: - | F44: 0 | G44: 0 | H44: 0 | I44: 0 | J44: 0 | K44: 0 | L44: 0 | N44: 0 | O44: 0 | P44: 0 | Q44: 0 | R44: 0 | S44: 0 | V44: 0
A45: + | B45: - | F45: 0 | G45: 0 | H45: 0 | I45: 0 | J45: 0 | K45: 0 | L45: 0 | N45: 0 | O45: 0 | P45: 0 | Q45: 0 | R45: 0 | S45: 0 | V45: 0
A46: + | B46: - | F46: 0 | G46: 0 | H46: 0 | I46: 0 | J46: 0 | K46: 0 | L46: 0 | N46: 0 | O46: 0 | P46: 0 | Q46: 0 | R46: 0 | S46: 0 | V46: 0
A47: + | B47: - | F47: 0 | G47: 0 | H47: 0 | I47: =SUM(H47,G47) -> 0 | J47: =SUM(I47,F47) -> 0 | K47: =IF(E47=0,0,J47/E47) -> 0 | L47: =SUM(E47,-J47) -> 0 | N47: 0 | O47: =M47*I47 -> 0 | P47: =SUM(O47,N47) -> 0 | Q47: 0 | R47: =SUM(P47,-Q47) -> 0 | S47: =IF(J47=0,0,R47/J47) -> 0
F48: 0 | G48: 0 | H48: 0 | I48: 0 | J48: 0 | K48: 0 | L48: 0 | N48: 0 | O48: 0 | P48: 0 | Q48: 0 | R48: 0 | S48: 0 | V48: 0
K50: =IF(E51=0,0,J51/E51) -> 0
C51: Totals: | E51: =SUM(E16:E48) -> 0 | F51: 0 | G51: 0 | H51: 0 | I51: 0 | J51: 0 | L51: =SUM(L16:L48) -> 0 | N51: =SUM(N16:N48) -> 0 | O51: =SUM(O16:O48) -> 0 | P51: =SUM(P16:P48) -> 0 | Q51: =SUM(Q16:Q48) -> 0 | R51: =SUM(R16:R48) -> 0 | S51: =IF(J51<>0,R51/J51,0) -> 0
C53: 10/21/2015 -Whiting-Turner

Sheet Instructions (hidden)

Sheet WT-002 Hidden (hidden)
C2: ORIGINAL SCHEDULE OF VALUES | E2: Form WT-002
C3: Contractor: | D3: =IF('WT-001'!P3<>"",'WT-001'!P3,"") ->  | J3: =IF('WT-001'!AB3<>"",'WT-001'!AB3,"") -> Fannie Mae UTC PLC Replacement
C4: Remittance Address: | D4: =IF('WT-001'!P5<>"",'WT-001'!P5,"") ->  | I4: PROJECT: | P4: APPLICATION NO: | Q4: =IF('WT-001'!AB6<>"",'WT-001'!AB6,"") -> 
D5: =IF('WT-001'!P6<>"",'WT-001'!P6,"") ->  | I5: PROJECT NO: | J5: =IF('WT-001'!D36<>"",'WT-001'!D36,"") -> 018117 | P5: PERIOD TO: | Q5: =IF('WT-001'!AB8<>"",'WT-001'!AB8,"") -> 
D6: =IF('WT-001'!P7<>"",'WT-001'!P7,"") ->  | I6: CONTRACT NO: | J6: =IF('WT-001'!AB5<>"",'WT-001'!AB5,"") ->  | P6: INVOICE DATE: | Q6: =IF('WT-001'!AB9<>"",'WT-001'!AB9,"") -> 
C7: WT-001 Application for Payment, containing Contractor's signed Certification is attached. In tabulations below, amounts are stated to the nearest dollar.
C9: A | D9: B | E9: C | F9: D | G9: E | H9: F | I9: G | J9: H | K9: I | L9: J | M9: K | N9: L | O9: M | P9: N | Q9: O | R9: P | S9: Q
C11: Task Code | D11: Description | E11: Contract Amount | F11: Work Completed | H11: Materials Presently Stored (Not in D or E) | I11: Total Current Amount (E+F) | J11: Total Completed Amount (D+G) | L11: Balance to Finish (C+H) | M11: % Ret this Period | N11: Previous Retainage | O11: Current Amount Retained (K*G) | P11: Total Amount Retained (L+M) | Q11: Retainage Released | R11: Total retainage held to date (N-O) | S11: % Total Ret (P / H)
F12: Previous Certified Amount | G12: This Period | K12: % | P12: Held
K13: (H/C) | P13: ='WT-001'!#REF!/100 -> 
C16: 2 | D16: Foundation Rebar - Area B | E16: 11000 | F16: 13000 | G16: 0 | H16: 0 | I16: =H16+G16 -> 0 | J16: =I16+F16 -> 13000 | K16: =IF(E16>0,J16/E16,0) -> 1.181818182 | L16: =E16-J16 -> -2000 | M16: 0.1 | N16: 1300 | O16: =M16*I16 -> 0 | P16: =O16+N16 -> 1300 | Q16: 0 | R16: =P16-Q16 -> 1300 | S16: =IF(J16<>0,R16/J16,0) -> 0.1 | V16: =SUM(G16,F16) -> 13000
C17: 3 | D17: Foundation Rebar - Area C | E17: 10500 | F17: 2500 | G17: 0 | H17: 0 | I17: 0 | J17: 2500 | K17: 0.2380952381 | L17: 8000 | M17: 0.1 | N17: 250 | O17: =M17*I17 -> 0 | P17: 250 | Q17: 0 | R17: 250 | S17: 0.1 | V17: =SUM(G17,F17) -> 2500
C18: 4 | D18: Foundation Rebar - Area D | E18: 10500 | F18: 500 | G18: 0 | H18: 0 | I18: 0 | J18: 500 | K18: 0.04761904762 | L18: 10000 | M18: 0.1 | N18: 50 | O18: 0 | P18: 50 | Q18: 0 | R18: 50 | S18: 0.1 | V18: 500
C19: 5 | D19: Foundations: Continuous (Strip/Wall) - Area A | E19: 439000 | F19: 429000 | G19: 0 | H19: 0 | I19: 0 | J19: 429000 | K19: 0.9772209567 | L19: 10000 | M19: 0.1 | N19: 42900 | O19: 0 | P19: 42900 | Q19: 0 | R19: 42900 | S19: 0.1 | V19: 429000
C20: 6 | D20: Foundations: Formwork | E20: 97000 | F20: 94000 | G20: 0 | H20: 0 | I20: 0 | J20: 94000 | K20: 0.9690721649 | L20: 3000 | M20: 0.1 | N20: 9400 | O20: 0 | P20: 9400 | Q20: 0 | R20: 9400 | S20: 0.1 | V20: 94000
C21: 7 | D21: Foundations: Formwork - Material | E21: 390000 | F21: 306000 | G21: 0 | H21: 0 | I21: 0 | J21: 306000 | K21: 0.7846153846 | L21: 84000 | M21: 0.1 | N21: 30600 | O21: 0 | P21: 30600 | Q21: 0 | R21: 30600 | S21: 0.1 | V21: 306000
C22: 8 | D22: Foundations: Formwork -Equipment | E22: 22000 | F22: 0 | G22: 0 | H22: 0 | I22: 0 | J22: 0 | K22: 0 | L22: 22000 | M22: 0.1 | N22: 0 | O22: 0 | P22: 0 | Q22: 0 | R22: 0 | S22: 0 | V22: 0
C23: 9 | D23: Foundations: Spread | E23: 13000 | F23: 0 | G23: 0 | H23: 0 | I23: 0 | J23: 0 | K23: 0 | L23: 13000 | M23: 0.1 | N23: 0 | O23: 0 | P23: 0 | Q23: 0 | R23: 0 | S23: 0 | V23: 0
C24: 10 | D24: Fluid Applied Waterproofing | E24: 6000 | F24: 0 | G24: 0 | H24: 0 | I24: 0 | J24: 0 | K24: 0 | L24: 6000 | M24: 0.1 | N24: 0 | O24: 0 | P24: 0 | Q24: 0 | R24: 0 | S24: 0 | V24: 0
C25: 11 | D25: Slab on Grade | E25: 100000 | F25: 6000 | G25: 0 | H25: 0 | I25: 0 | J25: 6000 | K25: 0.06 | L25: 94000 | M25: 0.1 | N25: 600 | O25: 0 | P25: 600 | Q25: 0 | R25: 600 | S25: 0.1 | V25: 6000
C26: 12 | D26: Equipment Pads | E26: 4000 | F26: 0 | G26: 0 | H26: 0 | I26: 0 | J26: 0 | K26: 0 | L26: 4000 | M26: 0.1 | N26: 0 | O26: 0 | P26: 0 | Q26: 0 | R26: 0 | S26: 0 | V26: 0
F27: 0 | G27: 0 | H27: 0 | I27: 0 | J27: 0 | K27: =IF(E27>0,J27/E27,0) -> 0 | L27: =E27-J27 -> 0 | M27: 0.1 | N27: 0 | O27: 0 | P27: 0 | Q27: 0 | R27: =P27-Q27 -> 0 | S27: 0 | V27: 0
F28: 0 | G28: 0 | H28: 0 | I28: 0 | J28: 0 | K28: =IF(E28>0,J28/E28,0) -> 0 | L28: =E28-J28 -> 0 | M28: 0.1 | N28: 0 | O28: 0 | P28: 0 | Q28: 0 | R28: =P28-Q28 -> 0 | S28: 0 | V28: 0
F29: 0 | G29: 0 | H29: 0 | I29: =H29+G29 -> 0 | J29: =I29+F29 -> 0 | K29: =IF(E29>0,J29/E29,0) -> 0 | L29: =E29-J29 -> 0 | M29: 0.1 | N29: 0 | O29: 0 | P29: =O29+N29 -> 0 | Q29: 0 | R29: =P29-Q29 -> 0 | S29: =IF(J29<>0,R29/J29,0) -> 0 | V29: 0
F30: 0 | G30: 0 | H30: 0 | I30: =H30+G30 -> 0 | J30: 0 | K30: =IF(E30>0,J30/E30,0) -> 0 | L30: =E30-J30 -> 0 | M30: 0.1 | N30: 0 | O30: 0 | P30: 0 | Q30: 0 | R30: =P30-Q30 -> 0 | S30: 0 | V30: 0
F31: 0 | G31: 0 | H31: 0 | I31: 0 | J31: 0 | K31: =IF(E31>0,J31/E31,0) -> 0 | L31: =E31-J31 -> 0 | M31: 0.1 | N31: 0 | O31: 0 | P31: 0 | Q31: 0 | R31: =P31-Q31 -> 0 | S31: 0 | V31: 0
F32: 0 | G32: 0 | H32: 0 | I32: 0 | J32: 0 | K32: 0 | L32: 0 | M32: 0.1 | N32: 0 | O32: 0 | P32: 0 | Q32: 0 | R32: 0 | S32: 0 | V32: 0
F33: 0 | G33: 0 | H33: 0 | I33: =H33+G33 -> 0 | J33: =I33+F33 -> 0 | K33: =IF(E33>0,J33/E33,0) -> 0 | L33: =E33-J33 -> 0 | M33: 0.1 | N33: 0 | O33: 0 | P33: =O33+N33 -> 0 | Q33: 0 | R33: =P33-Q33 -> 0 | S33: =IF(J33<>0,R33/J33,0) -> 0 | V33: 0
F34: 0 | G34: 0 | H34: 0 | I34: 0 | J34: 0 | K34: 0 | L34: 0 | M34: 0.1 | N34: 0 | O34: 0 | P34: 0 | Q34: 0 | R34: 0 | S34: 0 | V34: 0
F35: 0 | G35: 0 | H35: 0 | I35: 0 | J35: 0 | K35: 0 | L35: 0 | M35: 0.1 | N35: 0 | O35: 0 | P35: 0 | Q35: 0 | R35: 0 | S35: 0 | V35: 0
F36: 0 | G36: 0 | H36: 0 | I36: =H36+G36 -> 0 | J36: =I36+F36 -> 0 | K36: =IF(E36>0,J36/E36,0) -> 0 | L36: =E36-J36 -> 0 | M36: 0.1 | N36: 0 | O36: 0 | P36: =O36+N36 -> 0 | Q36: 0 | R36: =P36-Q36 -> 0 | S36: =IF(J36<>0,R36/J36,0) -> 0 | V36: 0
F37: 0 | G37: 0 | H37: 0 | I37: 0 | J37: 0 | K37: 0 | L37: 0 | M37: 0.1 | N37: 0 | O37: 0 | P37: 0 | Q37: 0 | R37: 0 | S37: 0 | V37: 0
F38: 0 | G38: 0 | H38: 0 | I38: 0 | J38: 0 | K38: 0 | L38: 0 | M38: 0.1 | N38: 0 | O38: 0 | P38: 0 | Q38: 0 | R38: 0 | S38: 0 | V38: 0
F39: 0 | G39: 0 | H39: 0 | I39: 0 | J39: 0 | K39: 0 | L39: 0 | M39: 0.1 | N39: 0 | O39: 0 | P39: 0 | Q39: 0 | R39: 0 | S39: 0 | V39: 0
F40: 0 | G40: 0 | H40: 0 | I40: 0 | J40: 0 | K40: 0 | L40: 0 | M40: 0.1 | N40: 0 | O40: 0 | P40: 0 | Q40: 0 | R40: 0 | S40: 0 | V40: 0
F41: 0 | G41: 0 | H41: 0 | I41: 0 | J41: 0 | K41: 0 | L41: 0 | M41: 0.1 | N41: 0 | O41: 0 | P41: 0 | Q41: 0 | R41: 0 | S41: 0 | V41: 0
F42: 0 | G42: 0 | H42: 0 | I42: 0 | J42: 0 | K42: 0 | L42: 0 | M42: 0.1 | N42: 0 | O42: 0 | P42: 0 | Q42: 0 | R42: 0 | S42: 0 | V42: 0
F43: 0 | G43: 0 | H43: 0 | I43: 0 | J43: 0 | K43: 0 | L43: 0 | M43: 0.1 | N43: 0 | O43: 0 | P43: 0 | Q43: 0 | R43: 0 | S43: 0 | V43: 0
F44: 0 | G44: 0 | H44: 0 | I44: 0 | J44: 0 | K44: 0 | L44: 0 | M44: 0.1 | N44: 0 | O44: 0 | P44: 0 | Q44: 0 | R44: 0 | S44: 0 | V44: 0
F45: 0 | G45: 0 | H45: 0 | I45: 0 | J45: 0 | K45: 0 | L45: 0 | M45: 0.1 | N45: 0 | O45: 0 | P45: 0 | Q45: 0 | R45: 0 | S45: 0 | V45: 0
C47: Subtotal | E47: =SUM(E15:E46) -> 1103000 | F47: 851000 | G47: 0 | H47: 0 | I47: 0 | J47: 851000 | K47: =IF(E47=0,0,J47/E47) -> 0.771532185 | L47: =SUM(L15:L46) -> 252000 | N47: =SUM(N15:N46) -> 85100 | O47: =SUM(O15:O46) -> 0 | P47: =SUM(P15:P46) -> 85100 | Q47: =SUM(Q15:Q46) -> 0 | R47: =SUM(R15:R46) -> 85100
C48: Summary of Changes (from W-T 003) | E48: ='WT-003'!E53 -> 0 | F48: ='WT-003'!F53 -> 0 | G48: ='WT-003'!G53 -> 0 | H48: ='WT-003'!H53 -> 0 | I48: ='WT-003'!I53 -> 0 | J48: ='WT-003'!J53 -> 0 | K48: =IF(E48=0,0,J48/E48) -> 0 | L48: ='WT-003'!L53 -> 0 | N48: ='WT-003'!N53 -> 0 | O48: ='WT-003'!O53 -> 0 | P48: ='WT-003'!P53 -> 0 | Q48: ='WT-003'!Q53 -> 0 | R48: ='WT-003'!R53 -> 0
C49: Totals:
E50: =SUM(E47:E48) -> 1103000 | F50: 851000 | G50: 0 | H50: 0 | I50: 0 | J50: 851000 | K50: =IF(E50=0,0,J50/E50) -> 0.771532185 | L50: =SUM(L47:L48) -> 252000 | N50: =SUM(N47:N48) -> 85100 | O50: =SUM(O47:O48) -> 0 | P50: =SUM(P47:P48) -> 85100 | Q50: =SUM(Q47:Q48) -> 0 | R50: =SUM(R47:R48) -> 85100
C52: 10/2/2015 -Whiting-Turner

Sheet WT-003 Hidden (hidden)
C2: CHANGE ORDER SCHEDULE OF VALUES | E2: Form WT-003
C3: Contractor: | D3: =IF('WT-001'!P3<>"",'WT-001'!P3,"") ->  | J3: =IF('WT-001'!AB3<>"",'WT-001'!AB3,"") -> Fannie Mae UTC PLC Replacement
C4: Remittance Address: | D4: =IF('WT-001'!P5<>"",'WT-001'!P5,"") ->  | I4: PROJECT: | P4: APPLICATION NO: | Q4: =IF('WT-001'!AB6<>"",'WT-001'!AB6,"") -> 
D5: =IF('WT-001'!P6<>"",'WT-001'!P6,"") ->  | I5: PROJECT NO: | J5: =IF('WT-001'!D36<>"",'WT-001'!D36,"") -> 018117 | P5: PERIOD TO: | Q5: =IF('WT-001'!AB8<>"",'WT-001'!AB8,"") -> 
D6: =IF('WT-001'!P7<>"",'WT-001'!P7,"") ->  | I6: CONTRACT NO: | J6: =IF('WT-001'!AB5<>"",'WT-001'!AB5,"") ->  | P6: INVOICE DATE: | Q6: =IF('WT-001'!AB9<>"",'WT-001'!AB9,"") -> 
C7: WT-001 Application for Payment, containing Contractor's signed Certification is attached. In tabulations below, amounts are stated to the nearest dollar.
C9: A | D9: B | E9: C | F9: D | G9: E | H9: F | I9: G | J9: H | K9: I | L9: J | M9: K | N9: L | O9: M | P9: N | Q9: O | R9: P | S9: Q
C11: Task Code | D11: Description | E11: Contract Amount | F11: Work Completed | H11: Materials Presently Stored (Not in D or E) | I11: Total Current Amount (E+F) | J11: Total Completed Amount (D+G) | L11: Balance to Finish (C+H) | M11: % Ret this Period | N11: Previous Retainage | O11: Current Amount Retained (K*G) | P11: Total Amount Retained (L+M) | Q11: Retainage Released | R11: Total retainage held to date (N-O) | S11: % Total Ret
F12: Previous Certified Amount | G12: This Period | K12: % | P12: Held
K13: (H/C) | P13: ='WT-001'!#REF!/100 -> 
C16: 002 | D16: Bul #1 Additional service for electrical room | E16: 1500 | F16: 1500 | G16: 0 | H16: 0 | I16: =G16+H16 -> 0 | J16: =F16+I16 -> 1500 | K16: =IF(E16>0,J16/E16,0) -> 1 | L16: =E16-J16 -> 0 | M16: 0.1 | N16: 150 | O16: =M16*I16 -> 0 | P16: =O16+N16 -> 150 | Q16: 0 | R16: =P16-Q16 -> 150 | S16: =IF(J16<>0,R16/J16,0) -> 0.1 | V16: =SUM(G16,F16) -> 1500
C17: 002 | D17: Bul #1 Additional service for electrical room | E17: 3000 | F17: 4000 | G17: 0 | H17: 0 | I17: 0 | J17: 4000 | K17: 1.333333333 | L17: -1000 | M17: 0.1 | N17: 400 | O17: =M17*I17 -> 0 | P17: 400 | Q17: 0 | R17: 400 | S17: =IF(J17<>0,R17/J17,0) -> 0.1 | V17: =SUM(G17,F17) -> 4000
C18: 003 | D18: Bul #2 Depressed Slab | E18: 12000 | F18: 7000 | G18: 0 | H18: 0 | I18: 0 | J18: 7000 | K18: 0.5833333333 | L18: 5000 | M18: 0.1 | N18: 700 | O18: 0 | P18: 700 | Q18: 0 | R18: 700 | S18: 0.1 | V18: 7000
F19: 0 | G19: 0 | H19: 0 | I19: 0 | J19: 0 | K19: 0 | L19: 0 | M19: 0.1 | N19: 0 | O19: 0 | P19: 0 | Q19: 0 | R19: 0 | S19: 0 | V19: 0
F20: 0 | G20: 0 | H20: 0 | I20: 0 | J20: 0 | K20: 0 | L20: 0 | M20: 0.1 | N20: 0 | O20: 0 | P20: 0 | Q20: 0 | R20: 0 | S20: 0 | V20: 0
F21: 0 | G21: 0 | H21: 0 | I21: 0 | J21: 0 | K21: 0 | L21: 0 | M21: 0.1 | N21: 0 | O21: 0 | P21: 0 | Q21: 0 | R21: 0 | S21: 0 | V21: 0
F22: 0 | G22: 0 | H22: 0 | I22: 0 | J22: 0 | K22: 0 | L22: 0 | M22: 0.1 | N22: 0 | O22: 0 | P22: 0 | Q22: 0 | R22: 0 | S22: 0 | V22: 0
F23: 0 | G23: 0 | H23: 0 | I23: 0 | J23: 0 | K23: 0 | L23: 0 | M23: 0.1 | N23: 0 | O23: 0 | P23: 0 | Q23: 0 | R23: 0 | S23: 0 | V23: 0
F24: 0 | G24: 0 | H24: 0 | I24: 0 | J24: 0 | K24: 0 | L24: 0 | M24: 0.1 | N24: 0 | O24: 0 | P24: 0 | Q24: 0 | R24: 0 | S24: 0 | V24: 0
F25: 0 | G25: 0 | H25: 0 | I25: 0 | J25: 0 | K25: 0 | L25: 0 | M25: 0.1 | N25: 0 | O25: 0 | P25: 0 | Q25: 0 | R25: 0 | S25: 0 | V25: 0
F26: 0 | G26: 0 | H26: 0 | I26: 0 | J26: 0 | K26: 0 | L26: 0 | M26: 0.1 | N26: 0 | O26: 0 | P26: 0 | Q26: 0 | R26: 0 | S26: 0 | V26: 0
F27: 0 | G27: 0 | H27: 0 | I27: 0 | J27: 0 | K27: 0 | L27: 0 | M27: 0.1 | N27: 0 | O27: 0 | P27: 0 | Q27: 0 | R27: 0 | S27: 0 | V27: 0
F28: 0 | G28: 0 | H28: 0 | I28: 0 | J28: 0 | K28: 0 | L28: 0 | M28: 0.1 | N28: 0 | O28: 0 | P28: 0 | Q28: 0 | R28: 0 | S28: 0 | V28: 0
F29: 0 | G29: 0 | H29: 0 | I29: 0 | J29: 0 | K29: 0 | L29: 0 | M29: 0.1 | N29: 0 | O29: 0 | P29: 0 | Q29: 0 | R29: 0 | S29: 0 | V29: 0
F30: 0 | G30: 0 | H30: 0 | I30: 0 | J30: 0 | K30: 0 | L30: 0 | M30: 0.1 | N30: 0 | O30: 0 | P30: 0 | Q30: 0 | R30: 0 | S30: 0 | V30: 0
F31: 0 | G31: 0 | H31: 0 | I31: 0 | J31: 0 | K31: 0 | L31: 0 | M31: 0.1 | N31: 0 | O31: 0 | P31: 0 | Q31: 0 | R31: 0 | S31: 0 | V31: 0
F32: 0 | G32: 0 | H32: 0 | I32: 0 | J32: 0 | K32: 0 | L32: 0 | M32: 0.1 | N32: 0 | O32: 0 | P32: 0 | Q32: 0 | R32: 0 | S32: 0 | V32: 0
F33: 0 | G33: 0 | H33: 0 | I33: 0 | J33: 0 | K33: 0 | L33: 0 | M33: 0.1 | N33: 0 | O33: 0 | P33: 0 | Q33: 0 | R33: 0 | S33: 0 | V33: 0
F34: 0 | G34: 0 | H34: 0 | I34: 0 | J34: 0 | K34: 0 | L34: 0 | M34: 0.1 | N34: 0 | O34: 0 | P34: 0 | Q34: 0 | R34: 0 | S34: 0 | V34: 0
F35: 0 | G35: 0 | H35: 0 | I35: 0 | J35: 0 | K35: 0 | L35: 0 | M35: 0.1 | N35: 0 | O35: 0 | P35: 0 | Q35: 0 | R35: 0 | S35: 0 | V35: 0
F36: 0 | G36: 0 | H36: 0 | I36: =H36+G36 -> 0 | J36: =I36+F36 -> 0 | K36: =IF(E36>0,J36/E36,0) -> 0 | L36: =E36-J36 -> 0 | M36: 0.1 | N36: 0 | O36: 0 | P36: =O36+N36 -> 0 | Q36: 0 | R36: =P36-Q36 -> 0 | S36: =IF(J36<>0,R36/J36,0) -> 0 | V36: 0
F37: 0 | G37: 0 | H37: 0 | I37: =H37+G37 -> 0 | J37: =I37+F37 -> 0 | K37: =IF(E37>0,J37/E37,0) -> 0 | L37: =E37-J37 -> 0 | M37: 0.1 | N37: 0 | O37: 0 | P37: =O37+N37 -> 0 | Q37: 0 | R37: =P37-Q37 -> 0 | S37: =IF(J37<>0,R37/J37,0) -> 0 | V37: 0
F38: 0 | G38: 0 | H38: 0 | I38: =H38+G38 -> 0 | J38: =I38+F38 -> 0 | K38: =IF(E38>0,J38/E38,0) -> 0 | L38: =E38-J38 -> 0 | M38: 0.1 | N38: 0 | O38: 0 | P38: =O38+N38 -> 0 | Q38: 0 | R38: =P38-Q38 -> 0 | S38: =IF(J38<>0,R38/J38,0) -> 0 | V38: 0
F39: 0 | G39: 0 | H39: 0 | I39: =H39+G39 -> 0 | J39: =I39+F39 -> 0 | K39: =IF(E39>0,J39/E39,0) -> 0 | L39: =E39-J39 -> 0 | M39: 0.1 | N39: 0 | O39: 0 | P39: =O39+N39 -> 0 | Q39: 0 | R39: =P39-Q39 -> 0 | S39: =IF(J39<>0,R39/J39,0) -> 0 | V39: 0
F40: 0 | G40: 0 | H40: 0 | I40: 0 | J40: 0 | K40: 0 | L40: 0 | M40: 0.1 | N40: 0 | O40: 0 | P40: 0 | Q40: 0 | R40: 0 | S40: 0 | V40: 0
F41: 0 | G41: 0 | H41: 0 | I41: 0 | J41: 0 | K41: 0 | L41: 0 | M41: 0.1 | N41: 0 | O41: 0 | P41: 0 | Q41: 0 | R41: 0 | S41: 0 | V41: 0
F42: 0 | G42: 0 | H42: 0 | I42: 0 | J42: 0 | K42: 0 | L42: 0 | M42: 0.1 | N42: 0 | O42: 0 | P42: 0 | Q42: 0 | R42: 0 | S42: 0 | V42: 0
F43: 0 | G43: 0 | H43: 0 | I43: 0 | J43: 0 | K43: 0 | L43: 0 | M43: 0.1 | N43: 0 | O43: 0 | P43: 0 | Q43: 0 | R43: 0 | S43: 0 | V43: 0
F44: 0 | G44: 0 | H44: 0 | I44: 0 | J44: 0 | K44: 0 | L44: 0 | M44: 0.1 | N44: 0 | O44: 0 | P44: 0 | Q44: 0 | R44: 0 | S44: 0 | V44: 0
F45: 0 | G45: 0 | H45: 0 | I45: 0 | J45: 0 | K45: 0 | L45: 0 | M45: 0.1 | N45: 0 | O45: 0 | P45: 0 | Q45: 0 | R45: 0 | S45: 0 | V45: 0
F46: 0 | G46: 0 | H46: 0 | I46: 0 | J46: 0 | K46: 0 | L46: 0 | M46: 0.1 | N46: 0 | O46: 0 | P46: 0 | Q46: 0 | R46: 0 | S46: 0 | V46: 0
F47: 0 | G47: 0 | H47: 0 | I47: 0 | J47: 0 | K47: 0 | L47: 0 | M47: 0.1 | N47: 0 | O47: 0 | P47: 0 | Q47: 0 | R47: 0 | S47: 0 | V47: 0
F48: 0 | G48: 0 | H48: 0 | I48: 0 | J48: 0 | K48: 0 | L48: 0 | M48: 0.1 | N48: 0 | O48: 0 | P48: 0 | Q48: 0 | R48: 0 | S48: 0 | V48: 0
F49: 0 | G49: 0 | H49: 0 | I49: 0 | J49: 0 | K49: 0 | L49: 0 | M49: 0.1 | N49: 0 | O49: 0 | P49: 0 | Q49: 0 | R49: 0 | S49: 0 | V49: 0
F50: 0 | G50: 0 | H50: 0 | I50: 0 | J50: 0 | K50: 0 | L50: 0 | M50: 0.1 | N50: 0 | O50: 0 | P50: 0 | Q50: 0 | R50: 0 | S50: 0 | V50: 0
F51: 0 | G51: 0 | H51: 0 | I51: 0 | J51: 0 | K51: 0 | L51: 0 | M51: 0.1 | N51: 0 | O51: 0 | P51: 0 | Q51: 0 | R51: 0 | S51: 0 | V51: 0
F52: 0 | G52: 0 | H52: 0 | I52: 0 | J52: 0 | K52: 0 | L52: 0 | M52: 0.1 | N52: 0 | O52: 0 | P52: 0 | Q52: 0 | R52: 0 | S52: 0 | V52: 0
F53: 0 | G53: 0 | H53: 0 | I53: 0 | J53: 0 | K53: 0 | L53: 0 | M53: 0.1 | N53: 0 | O53: 0 | P53: 0 | Q53: 0 | R53: 0 | S53: 0 | V53: 0
F54: 0 | G54: 0 | H54: 0 | I54: 0 | J54: 0 | K54: 0 | L54: 0 | M54: 0.1 | N54: 0 | O54: 0 | P54: 0 | Q54: 0 | R54: 0 | S54: 0 | V54: 0
F55: 0 | G55: 0 | H55: 0 | I55: 0 | J55: 0 | K55: 0 | L55: 0 | M55: 0.1 | N55: 0 | O55: 0 | P55: 0 | Q55: 0 | R55: 0 | S55: 0 | V55: 0
F56: 0 | G56: 0 | H56: 0 | I56: 0 | J56: 0 | K56: 0 | L56: 0 | M56: 0.1 | N56: 0 | O56: 0 | P56: 0 | Q56: 0 | R56: 0 | S56: 0 | V56: 0
F57: 0 | G57: 0 | H57: 0 | I57: 0 | J57: 0 | K57: 0 | L57: 0 | M57: 0.1 | N57: 0 | O57: 0 | P57: 0 | Q57: 0 | R57: 0 | S57: 0 | V57: 0
F58: 0 | G58: 0 | H58: 0 | I58: 0 | J58: 0 | K58: 0 | L58: 0 | M58: 0.1 | N58: 0 | O58: 0 | P58: 0 | Q58: 0 | R58: 0 | S58: 0 | V58: 0
F59: 0 | G59: 0 | H59: 0 | I59: 0 | J59: 0 | K59: 0 | L59: 0 | M59: 0.1 | N59: 0 | O59: 0 | P59: 0 | Q59: 0 | R59: 0 | S59: 0 | V59: 0
F60: 0 | G60: 0 | H60: 0 | I60: 0 | J60: 0 | K60: 0 | L60: 0 | M60: 0.1 | N60: 0 | O60: 0 | P60: 0 | Q60: 0 | R60: 0 | S60: 0 | V60: 0
F61: 0 | G61: 0 | H61: 0 | I61: 0 | J61: 0 | K61: 0 | L61: 0 | M61: 0.1 | N61: 0 | O61: 0 | P61: 0 | Q61: 0 | R61: 0 | S61: 0 | V61: 0
F62: 0 | G62: 0 | H62: 0 | I62: 0 | J62: 0 | K62: 0 | L62: 0 | M62: 0.1 | N62: 0 | O62: 0 | P62: 0 | Q62: 0 | R62: 0 | S62: 0 | V62: 0
F63: 0 | G63: 0 | H63: 0 | I63: 0 | J63: 0 | K63: 0 | L63: 0 | M63: 0.1 | N63: 0 | O63: 0 | P63: 0 | Q63: 0 | R63: 0 | S63: 0 | V63: 0
F64: 0 | G64: 0 | H64: 0 | I64: 0 | J64: 0 | K64: 0 | L64: 0 | M64: 0.1 | N64: 0 | O64: 0 | P64: 0 | Q64: 0 | R64: 0 | S64: 0 | V64: 0
F65: 0 | G65: 0 | H65: 0 | I65: 0 | J65: 0 | K65: 0 | L65: 0 | M65: 0.1 | N65: 0 | O65: 0 | P65: 0 | Q65: 0 | R65: 0 | S65: 0 | V65: 0
F66: 0 | G66: 0 | H66: 0 | I66: 0 | J66: 0 | K66: 0 | L66: 0 | M66: 0.1 | N66: 0 | O66: 0 | P66: 0 | Q66: 0 | R66: 0 | S66: 0 | V66: 0
F67: 0 | G67: 0 | H67: 0 | I67: 0 | J67: 0 | K67: 0 | L67: 0 | M67: 0.1 | N67: 0 | O67: 0 | P67: 0 | Q67: 0 | R67: 0 | S67: 0 | V67: 0
C70: Totals: | E70: =SUM(E16:E67) -> 16500 | F70: 12500 | G70: 0 | H70: 0 | I70: 0 | J70: 12500 | K70: =IF(E70=0,0,J70/E70) -> 0.7575757576 | L70: =E70-J70 -> 4000 | N70: =SUM(N16:N67) -> 1250 | O70: =SUM(O16:O67) -> 0 | P70: =SUM(P16:P67) -> 1250 | Q70: =SUM(Q16:Q67) -> 0 | R70: =SUM(R16:R67) -> 1250 | S70: =IF(J70<>0,R70/J70,0) -> 0.1
C72: 10/2/2015 -Whiting-Turner
